[Event "*** Titled Tuesday Blitz"]
[Site "Chess.com"]
[Date "2021.03.09"]
[Round "6"]
[White "Unknown_IM"]
[Black "chescomhuynya"]
[Result "0-1"]
[WhiteElo "2389"]
[BlackElo "2575"]
[TimeControl "180+1"]
[EndTime "11:11:05 PST"]
[Termination "chescomhuynya won by resignation"]

1. e4 {[%clk 0:03:00.9]} 1... c5 {[%clk 0:02:59.5]} 2. Nf3 {[%clk 0:03:00.4]}
2... d6 {[%clk 0:02:59.9]} 3. c3 {[%clk 0:02:59.7]} 3... Nf6 {[%clk 0:02:59.9]}
4. Be2 {[%clk 0:02:58.7]} 4... Bg4 {[%clk 0:02:59.3]} 5. O-O {[%clk 0:02:57]}
5... e6 {[%clk 0:02:58.7]} 6. d3 {[%clk 0:02:55.3]} 6... Nc6 {[%clk 0:02:58.5]}
7. Bg5 {[%clk 0:02:54.1]} 7... Be7 {[%clk 0:02:58.3]} 8. Nbd2 {[%clk 0:02:51.9]}
8... O-O {[%clk 0:02:58.3]} 9. h3 {[%clk 0:02:49.9]} 9... Bh5 {[%clk 0:02:58.3]}
10. Be3 {[%clk 0:02:45.3]} 10... d5 {[%clk 0:02:56.7]} 11. e5 {[%clk 0:02:44.4]}
11... Nd7 {[%clk 0:02:55.4]} 12. d4 {[%clk 0:02:44.8]} 12... Qb6 {[%clk
0:02:54.5]} 13. Qb3 {[%clk 0:02:43.2]} 13... Rfc8 {[%clk 0:02:39.2]} 14. Rfb1
{[%clk 0:02:22.5]} 14... Bg6 {[%clk 0:02:23.7]} 15. Rc1 {[%clk 0:02:21]} 15...
Na5 {[%clk 0:02:20.4]} 16. Qxb6 {[%clk 0:02:16.5]} 16... axb6 {[%clk 0:02:21.3]}
17. b3 {[%clk 0:02:12.5]} 17... cxd4 {[%clk 0:02:19.1]} 18. cxd4 {[%clk
0:02:12.3]} 18... Ba3 {[%clk 0:02:19.7]} 19. Rxc8+ {[%clk 0:02:09.9]} 19... Rxc8
{[%clk 0:02:20.6]} 20. Ne1 {[%clk 0:02:10.1]} 20... Bb2 {[%clk 0:02:17.9]} 21.
Rd1 {[%clk 0:02:09.8]} 21... Nc6 {[%clk 0:02:12.5]} 22. Bd3 {[%clk 0:02:09]}
22... Bxd4 {[%clk 0:02:10.5]} 23. Bxd4 {[%clk 0:01:58.4]} 23... Nxd4 {[%clk
0:02:10.2]} 24. Bxg6 {[%clk 0:01:59.3]} 24... hxg6 {[%clk 0:02:10.7]} 25. Nc4
{[%clk 0:01:56.9]} 25... dxc4 {[%clk 0:01:56.3]} 26. Rxd4 {[%clk 0:01:56.2]}
26... Nxe5 {[%clk 0:01:55.4]} 27. f4 {[%clk 0:01:55.1]} 27... cxb3 {[%clk
0:01:46.1]} 28. fxe5 {[%clk 0:01:43.4]} 28... Rc1 {[%clk 0:01:45.9]} 29. axb3
{[%clk 0:01:38.4]} 29... Rxe1+ {[%clk 0:01:45.9]} 30. Kf2 {[%clk 0:01:39.3]}
30... Rxe5 {[%clk 0:01:46.2]} 31. Rb4 {[%clk 0:01:39.8]} 31... b5 {[%clk
0:01:45.6]} 32. Rd4 {[%clk 0:01:38]} 32... Rd5 {[%clk 0:01:45.3]} 33. Rxd5
{[%clk 0:01:34.4]} 33... exd5 {[%clk 0:01:45.6]} 34. Ke3 {[%clk 0:01:35.3]}
34... Kf8 {[%clk 0:01:20.5]} 35. Kd4 {[%clk 0:01:36.2]} 35... Ke7 {[%clk
0:01:21]} 36. Kxd5 {[%clk 0:01:37.1]} 36... b4 {[%clk 0:01:05.5]} 37. h4 {[%clk
0:01:31.7]} 37... Kd7 {[%clk 0:00:31.3]} 38. g3 {[%clk 0:01:18.2]} 38... Kc7
{[%clk 0:00:30.3]} 39. Kc5 {[%clk 0:01:17.7]} 39... Kd7 {[%clk 0:00:28.4]} 40.
Kd5 {[%clk 0:00:50.5]} 40... b6 {[%clk 0:00:28]} 41. Kc4 {[%clk 0:00:23.5]}
41... Kc6 {[%clk 0:00:28.9]} 42. Kxb4 {[%clk 0:00:22.9]} 42... b5 {[%clk
0:00:29.5]} 43. Kc3 {[%clk 0:00:21.8]} 43... Kc5 {[%clk 0:00:30.4]} 44. b4+
{[%clk 0:00:21.8]} 44... Kd5 {[%clk 0:00:30.3]} 45. Kd3 {[%clk 0:00:20.3]} 45...
f5 {[%clk 0:00:30.4]} 46. Ke3 {[%clk 0:00:17.9]} 46... Kc4 {[%clk 0:00:30.7]}
47. Kf4 {[%clk 0:00:18.8]} 47... Kxb4 {[%clk 0:00:31.6]} 48. Kg5 {[%clk
0:00:19.7]} 48... Kc3 {[%clk 0:00:31]} 49. Kxg6 {[%clk 0:00:20.3]} 49... b4
{[%clk 0:00:31.6]} 50. Kxf5 {[%clk 0:00:20.8]} 50... b3 {[%clk 0:00:32.5]} 51.
Kg6 {[%clk 0:00:21.3]} 51... b2 {[%clk 0:00:33.4]} 52. Kxg7 {[%clk 0:00:21.9]}
52... b1=Q {[%clk 0:00:34.3]} 53. h5 {[%clk 0:00:22]} 53... Qb7+ {[%clk
0:00:34.2]} 54. Kg6 {[%clk 0:00:22.2]} 54... Qc6+ {[%clk 0:00:34.7]} 55. Kg7
{[%clk 0:00:22.1]} 55... Qd7+ {[%clk 0:00:35.3]} 56. Kg6 {[%clk 0:00:22.6]}
56... Qg4+ {[%clk 0:00:35.5]} 57. Kh6 {[%clk 0:00:21.1]} 57... Kd4 {[%clk
0:00:35.1]} 0-1

[Event "*** Titled Tuesday Blitz"]
[Site "Chess.com"]
[Date "2021.03.09"]
[Round "6"]
[White "tusplingher"]
[Black "dodorox"]
[Result "1-0"]
[WhiteElo "2297"]
[BlackElo "2127"]
[TimeControl "180+1"]
[EndTime "11:11:05 PST"]
[Termination "tusplingher won on time"]

1. e4 {[%clk 0:03:00.9]} 1... e6 {[%clk 0:02:59.7]} 2. d4 {[%clk 0:03:00.6]}
2... d5 {[%clk 0:02:59.1]} 3. Bd3 {[%clk 0:03:01.1]} 3... dxe4 {[%clk
0:02:50.5]} 4. Bxe4 {[%clk 0:02:59.9]} 4... c5 {[%clk 0:02:50.5]} 5. Ne2 {[%clk
0:02:58.5]} 5... Nf6 {[%clk 0:02:42.9]} 6. Bf3 {[%clk 0:02:58.1]} 6... cxd4
{[%clk 0:02:36.3]} 7. Nxd4 {[%clk 0:02:56.3]} 7... Be7 {[%clk 0:02:34.4]} 8. O-O
{[%clk 0:02:53.5]} 8... O-O {[%clk 0:02:17.4]} 9. Be3 {[%clk 0:02:51.3]} 9... e5
{[%clk 0:02:13.2]} 10. Nb3 {[%clk 0:02:50.2]} 10... e4 {[%clk 0:02:11.6]} 11.
Be2 {[%clk 0:02:48.7]} 11... Nc6 {[%clk 0:02:10.3]} 12. Nc3 {[%clk 0:02:47.6]}
12... b6 {[%clk 0:02:05.5]} 13. Bg5 {[%clk 0:02:46.1]} 13... Bf5 {[%clk
0:01:51.8]} 14. Qxd8 {[%clk 0:02:37]} 14... Raxd8 {[%clk 0:01:43.7]} 15. f3
{[%clk 0:02:37.2]} 15... exf3 {[%clk 0:01:33]} 16. Bxf3 {[%clk 0:02:36]} 16...
Nd4 {[%clk 0:01:24.9]} 17. Nxd4 {[%clk 0:02:34.3]} 17... Rxd4 {[%clk 0:01:24.2]}
18. Rae1 {[%clk 0:02:30.7]} 18... Bd8 {[%clk 0:01:10.5]} 19. Bd1 {[%clk
0:02:07.5]} 19... Bg6 {[%clk 0:01:02.1]} 20. Be3 {[%clk 0:02:04.7]} 20... Rd7
{[%clk 0:00:56.1]} 21. a3 {[%clk 0:01:48.8]} 21... Nd5 {[%clk 0:00:52.5]} 22.
Nxd5 {[%clk 0:01:46.8]} 22... Rxd5 {[%clk 0:00:53.4]} 23. c3 {[%clk 0:01:44.4]}
23... Bf6 {[%clk 0:00:47.4]} 24. Bb3 {[%clk 0:01:43.5]} 24... Rdd8 {[%clk
0:00:42.7]} 25. g4 {[%clk 0:01:35.2]} 25... Rfe8 {[%clk 0:00:39.1]} 26. g5
{[%clk 0:01:32]} 26... Be5 {[%clk 0:00:29.8]} 27. a4 {[%clk 0:01:08.5]} 27...
Bb8 {[%clk 0:00:20.7]} 28. Bd4 {[%clk 0:01:04.9]} 28... Kf8 {[%clk 0:00:14.1]}
29. a5 {[%clk 0:00:51.8]} 29... bxa5 {[%clk 0:00:12.2]} 30. Ba4 {[%clk
0:00:47.9]} 30... Rxe1 {[%clk 0:00:09.6]} 31. Rxe1 {[%clk 0:00:47.6]} 31... Kg8
{[%clk 0:00:06.5]} 32. Re7 {[%clk 0:00:40.5]} 32... h6 {[%clk 0:00:05.9]} 33.
gxh6 {[%clk 0:00:36.3]} 33... gxh6 {[%clk 0:00:05.8]} 34. Re2 {[%clk 0:00:33.7]}
34... Bh5 {[%clk 0:00:04.7]} 35. Rg2+ {[%clk 0:00:32.3]} 35... Bg6 {[%clk
0:00:04.9]} 36. Bb3 {[%clk 0:00:31.8]} 36... Kh7 {[%clk 0:00:04.2]} 37. h4
{[%clk 0:00:31.4]} 37... h5 {[%clk 0:00:03.5]} 38. Re2 {[%clk 0:00:25.1]} 38...
Rg8 {[%clk 0:00:01.6]} 39. Kf2 {[%clk 0:00:19.5]} 39... Rd8 {[%clk 0:00:01.4]}
40. Re7 {[%clk 0:00:17.6]} 40... Kg8 {[%clk 0:00:01.1]} 41. Ke3 {[%clk
0:00:14.9]} 41... Bd6 {[%clk 0:00:01]} 42. Rxa7 {[%clk 0:00:14.1]} 42... Bg3
{[%clk 0:00:01.3]} 43. Rxa5 {[%clk 0:00:13.2]} 1-0

[Event "*** Titled Tuesday Blitz"]
[Site "Chess.com"]
[Date "2021.03.09"]
[Round "6"]
[White "OlifantCZ"]
[Black "KhamzinOlzhas"]
[Result "0-1"]
[WhiteElo "2299"]
[BlackElo "2549"]
[TimeControl "180+1"]
[EndTime "11:11:06 PST"]
[Termination "KhamzinOlzhas won by resignation"]

1. c4 {[%clk 0:03:00.9]} 1... Nf6 {[%clk 0:02:56.9]} 2. g3 {[%clk 0:03:00.8]}
2... c6 {[%clk 0:02:52]} 3. Bg2 {[%clk 0:03:01]} 3... d5 {[%clk 0:02:51.4]} 4.
Nf3 {[%clk 0:03:01.5]} 4... g6 {[%clk 0:02:50.6]} 5. Kf1 {[%clk 0:02:59.8]} 5...
Bg7 {[%clk 0:02:50.4]} 6. h4 {[%clk 0:02:55.7]} 6... h5 {[%clk 0:02:47.6]} 7. d3
{[%clk 0:02:50.6]} 7... O-O {[%clk 0:02:47.5]} 8. Nc3 {[%clk 0:02:50.3]} 8...
dxc4 {[%clk 0:02:47.5]} 9. d4 {[%clk 0:02:46]} 9... Nbd7 {[%clk 0:02:29.5]} 10.
a4 {[%clk 0:02:38.8]} 10... a5 {[%clk 0:02:29.1]} 11. Bg5 {[%clk 0:02:26.4]}
11... Nb6 {[%clk 0:02:10]} 12. Ne5 {[%clk 0:02:16.5]} 12... Nfd5 {[%clk
0:02:05.6]} 13. Bd2 {[%clk 0:02:05.7]} 13... Be6 {[%clk 0:01:59.7]} 14. e4
{[%clk 0:02:01.3]} 14... Nxc3 {[%clk 0:01:55.9]} 15. bxc3 {[%clk 0:02:01.3]}
15... Bxe5 {[%clk 0:01:53.2]} 16. dxe5 {[%clk 0:02:00.9]} 16... Qd3+ {[%clk
0:01:51.8]} 17. Qe2 {[%clk 0:01:57.8]} 17... Rfd8 {[%clk 0:01:50.2]} 18. Be3
{[%clk 0:01:54.7]} 18... Nd7 {[%clk 0:01:45.7]} 19. f4 {[%clk 0:01:45]} 19... b5
{[%clk 0:01:35.1]} 20. Bf3 {[%clk 0:01:36.3]} 20... b4 {[%clk 0:01:17.5]} 21. f5
{[%clk 0:01:28.5]} 21... Nxe5 {[%clk 0:01:05.3]} 22. Kf2 {[%clk 0:00:54.6]}
22... Qxe2+ {[%clk 0:00:58.2]} 23. Bxe2 {[%clk 0:00:53.5]} 23... gxf5 {[%clk
0:00:57.1]} 24. exf5 {[%clk 0:00:51.3]} 24... Bxf5 {[%clk 0:00:56]} 25. Bxh5
{[%clk 0:00:51.4]} 25... Bg4 {[%clk 0:00:41.2]} 26. Bxg4 {[%clk 0:00:19.9]}
26... Nxg4+ {[%clk 0:00:42.1]} 27. Kf3 {[%clk 0:00:20.4]} 27... Nxe3 {[%clk
0:00:38.3]} 28. Kxe3 {[%clk 0:00:20.7]} 28... Rd3+ {[%clk 0:00:38.9]} 29. Ke4
{[%clk 0:00:21.1]} 29... Rxc3 {[%clk 0:00:35.9]} 30. g4 {[%clk 0:00:20]} 30...
Rd8 {[%clk 0:00:34.5]} 31. g5 {[%clk 0:00:19]} 31... Rcd3 {[%clk 0:00:29.1]} 32.
h5 {[%clk 0:00:18]} 32... R8d4+ {[%clk 0:00:26.9]} 33. Ke5 {[%clk 0:00:18]}
33... Rd5+ {[%clk 0:00:27.5]} 34. Ke4 {[%clk 0:00:17.9]} 34... R3d4+ {[%clk
0:00:28]} 35. Ke3 {[%clk 0:00:18.1]} 35... Rg4 {[%clk 0:00:27]} 36. g6 {[%clk
0:00:14.5]} 36... fxg6 {[%clk 0:00:27.1]} 37. hxg6 {[%clk 0:00:14.9]} 37... Rxg6
{[%clk 0:00:28]} 38. Rh4 {[%clk 0:00:13.2]} 38... Rg3+ {[%clk 0:00:25.9]} 39.
Kf4 {[%clk 0:00:12.2]} 39... Rg6 {[%clk 0:00:19.4]} 40. Ke3 {[%clk 0:00:10]}
40... Re6+ {[%clk 0:00:19]} 41. Kf2 {[%clk 0:00:09.5]} 41... c3 {[%clk
0:00:19.1]} 42. Rg1+ {[%clk 0:00:08.1]} 42... Kf7 {[%clk 0:00:19.1]} 43. Rh7+
{[%clk 0:00:07.1]} 43... Ke8 {[%clk 0:00:19.3]} 44. Rg8+ {[%clk 0:00:06.7]}
44... Kd7 {[%clk 0:00:19.4]} 45. Rhh8 {[%clk 0:00:07.2]} 45... Kd6 {[%clk
0:00:19.8]} 46. Rd8+ {[%clk 0:00:07.9]} 46... Kc5 {[%clk 0:00:20.2]} 47. Rxd5+
{[%clk 0:00:05.7]} 47... Kxd5 {[%clk 0:00:20.3]} 0-1

[Event "*** Titled Tuesday Blitz"]
[Site "Chess.com"]
[Date "2021.03.09"]
[Round "6"]
[White "Konavets"]
[Black "XDPS"]
[Result "1-0"]
[WhiteElo "2925"]
[BlackElo "2723"]
[TimeControl "180+1"]
[EndTime "11:11:07 PST"]
[Termination "Konavets won on time"]

1. e4 {[%clk 0:03:00.9]} 1... e5 {[%clk 0:02:59.9]} 2. Nf3 {[%clk 0:02:43.8]}
2... Nc6 {[%clk 0:02:59.4]} 3. Bc4 {[%clk 0:02:44]} 3... Bc5 {[%clk 0:02:58.8]}
4. d3 {[%clk 0:02:42]} 4... Nf6 {[%clk 0:02:58.3]} 5. Bg5 {[%clk 0:02:42.8]}
5... O-O {[%clk 0:02:55.9]} 6. c3 {[%clk 0:02:42.6]} 6... Be7 {[%clk 0:02:56.2]}
7. Nbd2 {[%clk 0:02:41.6]} 7... d6 {[%clk 0:02:56.4]} 8. a4 {[%clk 0:02:41.2]}
8... a6 {[%clk 0:02:54.2]} 9. Nf1 {[%clk 0:02:28.5]} 9... Be6 {[%clk 0:02:50.8]}
10. Ne3 {[%clk 0:02:26.4]} 10... Qd7 {[%clk 0:02:48.9]} 11. O-O {[%clk
0:02:21.3]} 11... Bxc4 {[%clk 0:02:23.6]} 12. Nxc4 {[%clk 0:02:19.4]} 12... h6
{[%clk 0:02:07.6]} 13. Bxf6 {[%clk 0:02:17.4]} 13... Bxf6 {[%clk 0:02:07.8]} 14.
Ne3 {[%clk 0:02:17.7]} 14... Ne7 {[%clk 0:02:07.8]} 15. d4 {[%clk 0:02:16.9]}
15... Qc6 {[%clk 0:02:06.9]} 16. Qd3 {[%clk 0:02:15.5]} 16... h5 {[%clk
0:02:02.8]} 17. h4 {[%clk 0:02:12.9]} 17... g6 {[%clk 0:02:02.6]} 18. g3 {[%clk
0:02:10.6]} 18... Bg7 {[%clk 0:02:00.5]} 19. Ng5 {[%clk 0:02:10.9]} 19... b5
{[%clk 0:01:49.1]} 20. d5 {[%clk 0:02:10.4]} 20... Qd7 {[%clk 0:01:46.4]} 21. b4
{[%clk 0:02:10.7]} 21... Bh6 {[%clk 0:01:41.9]} 22. Kg2 {[%clk 0:02:10.6]} 22...
Kg7 {[%clk 0:01:27.6]} 23. f4 {[%clk 0:02:07.1]} 23... bxa4 {[%clk 0:00:43.1]}
24. f5 {[%clk 0:02:00]} 24... Ng8 {[%clk 0:00:38.1]} 25. fxg6 {[%clk 0:01:56.3]}
25... Bxg5 {[%clk 0:00:28.1]} 26. Nf5+ {[%clk 0:01:54.5]} 26... Kxg6 {[%clk
0:00:27.1]} 27. hxg5 {[%clk 0:01:54.9]} 27... f6 {[%clk 0:00:26]} 28. gxf6
{[%clk 0:01:40.4]} 28... Rxf6 {[%clk 0:00:20.2]} 29. Rh1 {[%clk 0:01:38.5]}
29... Raf8 {[%clk 0:00:18.7]} 30. Raf1 {[%clk 0:01:38.2]} 30... Nh6 {[%clk
0:00:18.5]} 31. Qf3 {[%clk 0:01:35.6]} 31... Ng4 {[%clk 0:00:16.7]} 32. Rxh5
{[%clk 0:01:31.1]} 32... Kxh5 {[%clk 0:00:13.8]} 33. Rh1+ {[%clk 0:01:31.2]}
33... Kg5 {[%clk 0:00:14.2]} 34. Rh4 {[%clk 0:01:13.1]} 34... Rxf5 {[%clk
0:00:14.7]} 35. Qxg4+ {[%clk 0:01:11.8]} 35... Kf6 {[%clk 0:00:15.2]} 36. exf5
{[%clk 0:01:12.2]} 36... Qxf5 {[%clk 0:00:13.6]} 37. Qc4 {[%clk 0:00:59.6]}
37... Kg7 {[%clk 0:00:07.7]} 38. Rg4+ {[%clk 0:00:57.7]} 38... Kh8 {[%clk
0:00:07.9]} 39. Rh4+ {[%clk 0:00:56.9]} 39... Kg7 {[%clk 0:00:08.4]} 40. Rg4+
{[%clk 0:00:55.6]} 40... Kh6 {[%clk 0:00:08]} 41. Qe2 {[%clk 0:00:51.8]} 41...
Rf6 {[%clk 0:00:04.8]} 42. Rc4 {[%clk 0:00:41]} 42... Rg6 {[%clk 0:00:04.2]} 43.
Rxc7 {[%clk 0:00:38.5]} 43... e4 {[%clk 0:00:04.9]} 44. Qe3+ {[%clk 0:00:36.7]}
44... Rg5 {[%clk 0:00:05.3]} 45. Rc6 {[%clk 0:00:32.1]} 45... Qxd5 {[%clk
0:00:05.6]} 46. Rxa6 {[%clk 0:00:32.1]} 46... Qa2+ {[%clk 0:00:05.4]} 47. Qf2
{[%clk 0:00:28.3]} 47... Qe6 {[%clk 0:00:05.5]} 48. Qf4 {[%clk 0:00:27.3]} 48...
e3 {[%clk 0:00:05.3]} 49. Rxd6 {[%clk 0:00:26.9]} 1-0

[Event "*** Titled Tuesday Blitz"]
[Site "Chess.com"]
[Date "2021.03.09"]
[Round "6"]
[White "MasterKroket"]
[Black "LionChessClub"]
[Result "0-1"]
[WhiteElo "2471"]
[BlackElo "2615"]
[TimeControl "180+1"]
[EndTime "11:11:11 PST"]
[Termination "LionChessClub won by resignation"]

1. d4 {[%clk 0:03:00.9]} 1... f5 {[%clk 0:02:59.3]} 2. c4 {[%clk 0:03:00.6]}
2... Nf6 {[%clk 0:02:59]} 3. Nf3 {[%clk 0:03:00.8]} 3... g6 {[%clk 0:02:58.9]}
4. Nc3 {[%clk 0:03:01.1]} 4... d6 {[%clk 0:02:58.3]} 5. g3 {[%clk 0:03:01.4]}
5... Bg7 {[%clk 0:02:58.3]} 6. Bg2 {[%clk 0:03:01.9]} 6... O-O {[%clk
0:02:59.2]} 7. O-O {[%clk 0:03:02.1]} 7... Qe8 {[%clk 0:02:59.9]} 8. d5 {[%clk
0:03:02.5]} 8... Na6 {[%clk 0:02:59.6]} 9. Nd4 {[%clk 0:03:01.8]} 9... Nc5
{[%clk 0:02:59.3]} 10. Qc2 {[%clk 0:02:59.6]} 10... Bd7 {[%clk 0:02:56.7]} 11.
Rd1 {[%clk 0:02:45.2]} 11... a5 {[%clk 0:02:47.3]} 12. b3 {[%clk 0:02:43.6]}
12... Qf7 {[%clk 0:02:41.8]} 13. Bb2 {[%clk 0:02:41.5]} 13... Nfe4 {[%clk
0:02:41.5]} 14. e3 {[%clk 0:02:27.3]} 14... h5 {[%clk 0:02:33.4]} 15. h4 {[%clk
0:02:16.2]} 15... Rae8 {[%clk 0:02:31.7]} 16. Nce2 {[%clk 0:02:13.9]} 16... e5
{[%clk 0:02:27.2]} 17. dxe6 {[%clk 0:02:13.8]} 17... Nxe6 {[%clk 0:02:27.4]} 18.
Nxe6 {[%clk 0:02:12.8]} 18... Bxe6 {[%clk 0:02:25.9]} 19. Nf4 {[%clk 0:02:12]}
19... Bxb2 {[%clk 0:02:20.6]} 20. Qxb2 {[%clk 0:02:10]} 20... Bd7 {[%clk
0:02:20.9]} 21. Qd4 {[%clk 0:01:51.4]} 21... b6 {[%clk 0:02:13.1]} 22. Qd5
{[%clk 0:01:50.6]} 22... Nf6 {[%clk 0:02:03.5]} 23. Qxf7+ {[%clk 0:01:50.2]}
23... Kxf7 {[%clk 0:02:04.4]} 24. Bd5+ {[%clk 0:01:45.3]} 24... Kg7 {[%clk
0:02:02.5]} 25. a3 {[%clk 0:01:42.6]} 25... Re7 {[%clk 0:01:49.4]} 26. b4 {[%clk
0:01:42.5]} 26... a4 {[%clk 0:01:49.6]} 27. b5 {[%clk 0:01:38.4]} 27... Ne4
{[%clk 0:01:43]} 28. Bxe4 {[%clk 0:01:31.9]} 28... Rxe4 {[%clk 0:01:43.9]} 29.
Rd4 {[%clk 0:01:25.6]} 29... Rxd4 {[%clk 0:01:25.2]} 30. exd4 {[%clk 0:01:26.5]}
30... Re8 {[%clk 0:01:25.8]} 31. Rd1 {[%clk 0:01:17.6]} 31... Be6 {[%clk
0:01:11.4]} 32. Re1 {[%clk 0:01:13.9]} 32... Kf7 {[%clk 0:01:11]} 33. d5 {[%clk
0:00:59.5]} 33... Bd7 {[%clk 0:01:02.5]} 34. Rxe8 {[%clk 0:00:59.6]} 34... Bxe8
{[%clk 0:01:02.8]} 35. Kf1 {[%clk 0:01:00.3]} 35... Kf6 {[%clk 0:00:58.1]} 36.
Ke2 {[%clk 0:01:00.8]} 36... Bf7 {[%clk 0:00:56.3]} 37. Ke3 {[%clk 0:01:00]}
37... g5 {[%clk 0:00:56.1]} 38. hxg5+ {[%clk 0:00:58]} 38... Kxg5 {[%clk
0:00:57]} 39. Ng2 {[%clk 0:00:54.4]} 39... Kg4 {[%clk 0:00:52.6]} 40. Nf4 {[%clk
0:00:47.1]} 40... Kg5 {[%clk 0:00:52.6]} 41. Kf3 {[%clk 0:00:45.4]} 41... h4
{[%clk 0:00:39.3]} 42. gxh4+ {[%clk 0:00:42.2]} 42... Kxh4 {[%clk 0:00:40.2]}
43. Ne2 {[%clk 0:00:40.6]} 43... Bh5+ {[%clk 0:00:36.4]} 44. Ke3 {[%clk
0:00:37.2]} 44... Bxe2 {[%clk 0:00:29.8]} 45. Kxe2 {[%clk 0:00:38.1]} 45... Kg4
{[%clk 0:00:30.2]} 46. Ke3 {[%clk 0:00:33.3]} 46... Kg5 {[%clk 0:00:26.9]} 47.
Kf3 {[%clk 0:00:26.8]} 47... f4 {[%clk 0:00:23.7]} 48. Ke4 {[%clk 0:00:20.3]}
48... Kg4 {[%clk 0:00:23.8]} 49. f3+ {[%clk 0:00:09.7]} 49... Kg3 {[%clk
0:00:23.4]} 50. Kf5 {[%clk 0:00:10.6]} 50... Kxf3 {[%clk 0:00:23.5]} 51. Ke6
{[%clk 0:00:11.5]} 51... Ke4 {[%clk 0:00:24]} 52. Kd7 {[%clk 0:00:12.4]} 52...
Kd4 {[%clk 0:00:22.8]} 53. Kxc7 {[%clk 0:00:13.3]} 53... Kc5 {[%clk 0:00:23.3]}
0-1

[Event "*** Titled Tuesday Blitz"]
[Site "Chess.com"]
[Date "2021.03.09"]
[Round "6"]
[White "SwitchOnTwitch"]
[Black "J36225"]
[Result "0-1"]
[WhiteElo "2116"]
[BlackElo "2494"]
[TimeControl "180+1"]
[EndTime "11:11:13 PST"]
[Termination "J36225 won on time"]

1. d4 {[%clk 0:03:00.9]} 1... Nf6 {[%clk 0:02:59.3]} 2. c4 {[%clk 0:03:01.2]}
2... e6 {[%clk 0:02:59.4]} 3. g3 {[%clk 0:03:01.1]} 3... d5 {[%clk 0:02:59.5]}
4. Bg2 {[%clk 0:03:01.4]} 4... Be7 {[%clk 0:03:00.1]} 5. Nf3 {[%clk 0:03:02]}
5... dxc4 {[%clk 0:03:00.3]} 6. O-O {[%clk 0:03:01.6]} 6... Nc6 {[%clk
0:02:54.7]} 7. Qa4 {[%clk 0:03:00.9]} 7... O-O {[%clk 0:02:48.4]} 8. Qxc4 {[%clk
0:03:00.5]} 8... Qd5 {[%clk 0:02:48.8]} 9. Qd3 {[%clk 0:02:52.1]} 9... Rd8
{[%clk 0:02:42.9]} 10. Ne5 {[%clk 0:02:32]} 10... Qxd4 {[%clk 0:02:39]} 11. Nxc6
{[%clk 0:02:32.1]} 11... bxc6 {[%clk 0:02:35.3]} 12. Qxd4 {[%clk 0:02:31.5]}
12... Rxd4 {[%clk 0:02:34.9]} 13. Bxc6 {[%clk 0:02:27.8]} 13... Rb8 {[%clk
0:02:34.2]} 14. Nc3 {[%clk 0:02:21.8]} 14... Bb7 {[%clk 0:02:17.3]} 15. Bxb7
{[%clk 0:02:16.8]} 15... Rxb7 {[%clk 0:02:16.8]} 16. b3 {[%clk 0:02:15.8]} 16...
Bb4 {[%clk 0:02:12.4]} 17. Na4 {[%clk 0:02:07.3]} 17... Ne4 {[%clk 0:01:46.2]}
18. Be3 {[%clk 0:02:06]} 18... Rd6 {[%clk 0:01:40.9]} 19. Bf4 {[%clk 0:02:01.3]}
19... Rc6 {[%clk 0:01:33.4]} 20. Rfd1 {[%clk 0:01:51]} 20... Bd6 {[%clk
0:01:27.7]} 21. f3 {[%clk 0:01:44]} 21... Nf6 {[%clk 0:01:21.2]} 22. e4 {[%clk
0:01:20.7]} 22... Nh5 {[%clk 0:00:36.6]} 23. e5 {[%clk 0:01:06.6]} 23... Nxf4
{[%clk 0:00:35.2]} 24. gxf4 {[%clk 0:01:05.1]} 24... Bf8 {[%clk 0:00:32.8]} 25.
Rd8 {[%clk 0:00:59.8]} 25... g6 {[%clk 0:00:31.1]} 26. Rad1 {[%clk 0:00:55]}
26... Kg7 {[%clk 0:00:30.1]} 27. R1d2 {[%clk 0:00:48.6]} 27... Rb4 {[%clk
0:00:24.4]} 28. Kg2 {[%clk 0:00:31.5]} 28... Rxf4 {[%clk 0:00:20.5]} 29. Ra8
{[%clk 0:00:31.5]} 29... Rf5 {[%clk 0:00:19.6]} 30. Rdd8 {[%clk 0:00:25.5]}
30... Bc5 {[%clk 0:00:15.5]} 31. Rg8+ {[%clk 0:00:22.8]} 31... Kh6 {[%clk
0:00:15.4]} 32. Nxc5 {[%clk 0:00:16.6]} 32... Rxc5 {[%clk 0:00:16.3]} 33. Rxa7
{[%clk 0:00:17.1]} 33... Rfxe5 {[%clk 0:00:13.7]} 34. Rc8 {[%clk 0:00:16.3]}
34... Rc2+ {[%clk 0:00:13]} 35. Kg3 {[%clk 0:00:16.6]} 35... Rg5+ {[%clk
0:00:12.2]} 36. Kf4 {[%clk 0:00:16.3]} 36... Rf5+ {[%clk 0:00:12.6]} 37. Kg3
{[%clk 0:00:14.6]} 37... Rc3 {[%clk 0:00:12.4]} 38. Raxc7 {[%clk 0:00:14.1]}
38... Rcxf3+ {[%clk 0:00:12.3]} 39. Kg2 {[%clk 0:00:11.6]} 39... Rf2+ {[%clk
0:00:12.3]} 40. Kg1 {[%clk 0:00:12]} 40... Rxa2 {[%clk 0:00:12.4]} 41. Rc3
{[%clk 0:00:07.5]} 41... Rd5 {[%clk 0:00:10.5]} 42. Rc1 {[%clk 0:00:03.7]} 42...
Rdd2 {[%clk 0:00:09.7]} 0-1